fUST/lending_fUST_20251201
["ID","MTS","AMOUNT","RATE_DAILY","PERIOD"]
[395191215,1764529843916,-500.0,0.00013698,2]
[395191217,1764529843926,-500.0,0.00013698,2]
[395191219,1764529843936,-500.0,0.00013698,2]
[395191221,1764529843946,-1364.76,0.00013698,2]
[395191223,1764529843957,-500.0,0.00013698,2]
[395191225,1764529843966,-500.0,0.00013698,2]
[395191227,1764529843975,-500.0,0.00013698,2]
[395191229,1764529843985,-576.2,0.00013698,2]
[395191231,1764529843995,-500.0,0.00013698,2]
[395191234,1764529844006,-500.0,0.00013698,2]
[395191236,1764529844015,-1172.24,0.00013698,2]
[395191237,1764529844024,-500.0,0.00013698,2]
[395191239,1764529844035,-500.0,0.00013698,2]
[395191241,1764529844044,-500.0,0.00013698,2]
[395191243,1764529844053,-500.0,0.00013698,2]
[395191245,1764529844063,-500.0,0.00013698,2]
[395191246,1764529844072,-500.0,0.00013698,2]
[395191247,1764529844081,-500.0,0.00013698,2]
[395191248,1764529844091,-500.0,0.00013698,2]
[395191249,1764529844100,-500.0,0.00013698,2]
[395191250,1764529844109,-500.0,0.00013698,2]
[395191251,1764529844118,-500.0,0.00013698,2]
[395191252,1764529844127,-500.0,0.00013698,2]
[395191253,1764529844138,-500.0,0.00013698,2]
[395191254,1764529844148,-964.29,0.00013698,2]
[395191255,1764529844157,-500.0,0.00013698,2]
[395191256,1764529844167,-575.05895758,0.00013698,2]
[395191257,1764529844176,-500.0,0.00013698,2]
[395191258,1764529844186,-500.0,0.00013698,2]
[395191259,1764529844196,-500.0,0.00013698,2]
[395191260,1764529844205,-500.0,0.00013698,2]
[395191261,1764529844215,-500.0,0.00013698,2]
[395191262,1764529844225,-616.94,0.00013698,2]
[395191263,1764529844235,-694.77,0.00013698,2]
[395191264,1764529844244,-500.0,0.00013698,2]
[395191265,1764529844254,-500.0,0.00013698,2]
[395191266,1764529844263,-176.11358816,0.00013698,2]
[395191267,1764529844273,-500.0,0.00013698,2]
[395191268,1764529844283,-2685.52,0.00013698,2]
[395191269,1764529844292,-500.0,0.00013698,2]
[395191270,1764529844302,-500.0,0.00013698,2]
[395191271,1764529844312,-500.0,0.00013698,2]
[395191272,1764529844322,-500.0,0.00013698,2]
[395191273,1764529844331,-500.0,0.00013698,2]
[395191275,1764529844341,-500.0,0.00013698,2]
[395191277,1764529844351,-500.0,0.00013698,2]
[395191278,1764529844360,-500.0,0.00013698,2]
[395191280,1764529844369,-522.26777699,0.00013698,2]
[395191283,1764529844379,-500.0,0.00013698,2]
[395191284,1764529844388,-500.0,0.00013698,2]
[395191287,1764529844398,-500.0,0.00013698,2]
[395191290,1764529844419,-500.0,0.00013698,2]
[395191292,1764529844429,-695.22,0.00013698,2]
[395191294,1764529844440,-500.0,0.00013698,2]
[395191296,1764529844450,-500.0,0.00013698,2]
[395191298,1764529844460,-500.0,0.00013698,2]
[395191300,1764529844470,-1003.21,0.00013698,2]
[395191302,1764529844479,-500.0,0.00013698,2]
[395191304,1764529844489,-151.0,0.00013698,2]
[395191306,1764529844499,-151.0,0.00013698,2]
[395191308,1764529844509,-151.0,0.00013698,2]
[395191310,1764529844519,-1300.15,0.00013698,2]
[395191312,1764529844529,-5823.12,0.00013698,2]
[395191314,1764529844539,-500.0,0.00013698,2]
[395191316,1764529844550,-500.0,0.00013698,2]
[395191318,1764529844560,-500.0,0.00013698,2]
[395191320,1764529844569,-500.0,0.00013698,2]
[395191322,1764529844579,-500.0,0.00013698,2]
[395191324,1764529844589,-500.0,0.00013698,2]
[395191326,1764529844598,-1656.78,0.00013698,2]
[395191328,1764529844608,-500.0,0.00013698,2]
[395191330,1764529844617,-500.0,0.00013698,2]
[395191332,1764529844626,-500.0,0.00013698,2]
[395191333,1764529844635,-500.0,0.00013698,2]
[395191334,1764529844645,-658.9,0.00013698,2]
[395191336,1764529844654,-500.0,0.00013698,2]
[395191338,1764529844664,-1214.18,0.00013698,2]
[395191340,1764529844673,-500.0,0.00013698,2]
[395191342,1764529844682,-594.40781505,0.00013698,2]
[395191344,1764529844692,-500.0,0.00013698,2]
[395191346,1764529844701,-777.87,0.00013698,2]
[395191348,1764529844711,-500.0,0.00013698,2]
[395191350,1764529844720,-500.0,0.00013698,2]
[395191352,1764529844731,-500.0,0.00013698,2]
[395191354,1764529844740,-500.0,0.00013698,2]
[395191356,1764529844750,-151.0,0.00013698,2]
[395191358,1764529844760,-500.0,0.00013698,2]
[395191360,1764529844769,-250.134554,0.00013698,2]
[395191361,1764529844778,-500.0,0.00013698,2]
[395191363,1764529844788,-500.0,0.00013698,2]
[395191366,1764529844798,-500.0,0.00013698,2]
[395191367,1764529844813,-1325.47,0.00013698,2]
[395191369,1764529844822,-500.0,0.00013698,2]
[395191371,1764529844832,-500.0,0.00013698,2]
[395191373,1764529844843,-500.0,0.00013698,2]
[395191375,1764529844852,-500.0,0.00013698,2]
[395191377,1764529844862,-500.0,0.00013698,2]
[395191379,1764529844871,-500.0,0.00013698,2]
[395191381,1764529844880,-1259.99,0.00013698,2]
[395191383,1764529844893,-500.0,0.00013698,2]
[395191385,1764529844902,-500.0,0.00013698,2]
[395191387,1764529844912,-500.0,0.00013698,2]
[395191389,1764529844921,-3794.48,0.00013698,2]
[395191391,1764529844930,-500.0,0.00013698,2]
[395191393,1764529844940,-500.0,0.00013698,2]
[395191395,1764529844950,-500.0,0.00013698,2]
[395191397,1764529844960,-500.0,0.00013698,2]
[395191399,1764529844970,-500.0,0.00013698,2]
[395191401,1764529844979,-929.07,0.00013698,2]
[395191403,1764529844989,-448.64759736,0.00013698,2]
[395191406,1764529845019,-51.35240264,0.00013698,2]
[395191409,1764529845029,-500.0,0.00013698,2]
[395191411,1764529845039,-500.0,0.00013698,2]
[395191412,1764529845049,-500.0,0.00013698,2]
[395191415,1764529845060,-500.0,0.00013698,2]
[395191417,1764529845070,-500.0,0.00013698,2]
[395191419,1764529845079,-500.0,0.00013698,2]
[395191420,1764529845089,-500.0,0.00013698,2]
[395191422,1764529845098,-500.0,0.00013698,2]
[395191424,1764529845108,-500.0,0.00013698,2]
[395191426,1764529845117,-500.0,0.00013698,2]
[395191428,1764529845127,-500.0,0.00013698,2]
[395191430,1764529845136,-5740.08759736,0.00013698,2]
[395191526,1764529845947,-500.0,0.00013273,2]
[395191528,1764529845957,-1070.19240264,0.00013698,2]
[395191530,1764529845967,-177.09632423,0.00013698,2]
[395191532,1764529845976,-500.0,0.00013698,2]
[395191534,1764529845985,-440.28097286,0.00013698,2]
[395191537,1764529846001,-283.85902714,0.00013698,2]
[395191538,1764529846010,-863.64097286,0.00013698,2]
[395191541,1764529846021,-631.8891262,0.00013698,2]
[395191581,1764529846388,-354.09990094,0.00013698,2]
[395191583,1764529846398,-500.0,0.00013698,2]
[395191585,1764529846407,-519.7055269,0.00013698,2]
[395191587,1764529846416,-500.0,0.00013698,2]
[395191589,1764529846425,-500.0,0.00013698,2]
[395191591,1764529846434,-271.23898045,0.00013698,2]
[395191593,1764529846444,-1458.94,0.00013698,2]
[395191595,1764529846453,-1219.29,0.00013698,2]
[395191597,1764529846462,-500.0,0.00013698,2]
[395191599,1764529846471,-500.0,0.00013698,2]
[395191600,1764529846480,-151.0,0.00013698,2]
[395191602,1764529846493,-151.0,0.00013698,2]
[395191604,1764529846503,-713.89,0.00013698,2]
[395191606,1764529846513,-500.0,0.00013698,2]
[395191608,1764529846531,-151.0,0.00013698,2]
[395191610,1764529846543,-151.0,0.00013698,2]
[395191612,1764529846552,-151.0,0.00013698,2]
[395191614,1764529846562,-151.0,0.00013698,2]
[395191616,1764529846572,-151.0,0.00013698,2]
[395191617,1764529846581,-162.290416,0.00013698,2]
[395191618,1764529846590,-500.0,0.00013698,2]
[395191620,1764529846601,-500.0,0.00013698,2]
[395191622,1764529846610,-641.5,0.00013698,2]
[395191624,1764529846619,-1061.96,0.00013698,2]
[395191626,1764529846628,-603.62242483,0.00013698,2]
[395191628,1764529846637,-500.0,0.00013698,2]
[395191629,1764529846646,-500.0,0.00013698,2]
[395191631,1764529846656,-749.67,0.00013698,2]
[395191632,1764529846666,-571.95528509,0.00013698,2]
[395191633,1764529846675,-3241.33,0.00013698,2]
[395191634,1764529846684,-500.0,0.00013698,2]
[395191635,1764529846693,-2674.91,0.00013698,2]
[395191636,1764529846702,-500.0,0.00013698,2]
[395191637,1764529846712,-2015.71,0.00013698,2]
[395191638,1764529846721,-526.64,0.00013698,2]
[395191639,1764529846731,-500.0,0.00013698,2]
[395191640,1764529846740,-500.0,0.00013698,2]
[395191641,1764529846749,-500.0,0.00013698,2]
[395191642,1764529846758,-229.73557312,0.00013698,2]
[395191652,1764529847034,-403.72996231,0.00013698,2]
[395191655,1764529847049,-928.25446457,0.00013698,2]
[395191656,1764529847058,-500.0,0.00013698,2]
[395191658,1764529847068,-166.89899549,0.00013698,2]
[395191660,1764529847079,-333.10100451,0.00013698,2]
[395191661,1764529847088,-500.0,0.00013698,2]
[395191662,1764529847098,-500.0,0.00013698,2]
[395191663,1764529847107,-500.0,0.00013698,2]
[395191664,1764529847116,-500.0,0.00013698,2]
[395191665,1764529847125,-500.0,0.00013698,2]
[395191667,1764529847134,-500.0,0.00013698,2]
[395191669,1764529847143,-500.0,0.00013698,2]
[395191670,1764529847152,-244.92103483,0.00013698,2]
[395191765,1764530326666,150.0,0.00013226,30]
[395191766,1764530600308,-1099.68268177,8.746e-05,2]
[395191767,1764530600333,-900.31731823,8.834e-05,2]
[395191768,1764530610528,-199.36536354,8.834e-05,2]
[395191801,1764531032183,-254.2131595,8.726e-05,2]
[395191803,1764531032192,-222.0,8.726e-05,2]
[395191805,1764531032202,-426.27746833,8.815e-05,2]
[395191807,1764531032212,-131.86162977,8.903e-05,2]
[395191823,1764531032382,-122.35152973,8.903e-05,2]
[395191824,1764531032392,-875.68268177,9.104e-05,2]
[395191825,1764531032401,-185.97674436,0.00010056,2]
[395191826,1764531032411,-1358.0,0.0001009,2]
[395191827,1764531032420,-414.0,0.0001009,2]
[395191828,1764531032430,-258.95693991,0.00010155,2]
[395191829,1764531032440,-300.0,0.00010155,2]
[395191830,1764531032452,-184.06401235,0.00010158,2]
[395191831,1764531032462,-33705.95549326,0.00010158,2]
[395191832,1764531032474,-16294.04450674,0.00010158,2]
[395191833,1764531032483,-235.87376841,0.00010261,2]
[395191834,1764531032493,-332.0,0.00010357,2]
[395191835,1764531032502,-300.0,0.00010358,2]
[395191836,1764531032512,-300.0,0.00010358,2]
[395191837,1764531032521,-300.0,0.00010358,2]
[395191838,1764531032531,-300.0,0.00010358,2]
[395191839,1764531032545,-300.0,0.00010358,2]
[395191840,1764531032555,-300.0,0.00010358,2]
[395191841,1764531032564,-300.0,0.00010358,2]
[395191842,1764531032574,-300.0,0.00010358,2]
[395191843,1764531032584,-300.0,0.00010358,2]
[395191844,1764531032593,-300.0,0.00010358,2]
[395191845,1764531032603,-300.0,0.00010358,2]
[395191846,1764531032612,-300.0,0.00010358,2]
[395191847,1764531032623,-300.0,0.00010358,2]
[395191848,1764531032633,-300.0,0.00010358,2]
[395191849,1764531032643,-300.0,0.00010358,2]
[395191850,1764531032652,-600.0,0.00010358,2]
[395191851,1764531032661,-503.00741263,0.00010815,2]
[395191852,1764531032671,-500.0,0.00010958,2]
[395191853,1764531032680,-500.0,0.00010959,2]
[395191854,1764531032689,-450.0,0.00010959,2]
[395191855,1764531032698,-500.0,0.00010959,2]
[395191856,1764531032708,-500.0,0.00010959,2]
[395191857,1764531032717,-500.0,0.00010959,2]
[395191858,1764531032727,-500.0,0.00010959,2]
[395191859,1764531032736,-500.0,0.00010959,2]
[395191860,1764531032745,-500.0,0.00010959,2]
[395191861,1764531032755,-500.0,0.00010959,2]
[395191862,1764531032764,-500.0,0.00010959,2]
[395191863,1764531032773,-500.0,0.00010959,2]
[395191864,1764531032782,-381.25643037,0.00010959,2]
[395191865,1764531032791,-500.0,0.00010959,2]
[395191866,1764531032802,-420.0,0.00011169,2]
[395191867,1764531032811,-720.0,0.00011394,2]
[395191868,1764531032821,-263.1584114,0.0001153,2]
[395191869,1764531032830,-353.67603643,0.000118,2]
[395191870,1764531032840,-500.0,0.00012054,2]
[395191871,1764531032849,-587.0,0.00012284,2]
[395191872,1764531032858,-500.0,0.00012284,2]
[395191873,1764531032867,-875.68268177,0.00012408,2]
[395191874,1764531032876,-864.0,0.00012533,2]
[395191875,1764531032885,-579.73735693,0.00012815,2]
[395191876,1764531032895,-4965.07861541,0.000129,2]
[395191877,1764531032904,-4965.07861538,0.000129,2]
[395191878,1764531032913,-4965.07861538,0.000129,2]
[395191879,1764531032922,-231.28369723,0.00013051,2]
[395191880,1764531032932,-1358.0,0.0001309,2]
[395191881,1764531032941,-414.0,0.0001309,2]
[395191882,1764531032953,-500.0,0.0001315,2]
[395191883,1764531032963,-500.0,0.00013273,2]
[395191884,1764531032972,-500.0,0.00013273,2]
[395191885,1764531032981,-501.80225948,0.00013273,2]
[395191886,1764531032991,-500.0,0.00013273,2]
[395191887,1764531032999,-500.0,0.00013273,2]
[395191888,1764531033009,-500.0,0.00013273,2]
[395191889,1764531033018,-181.71923825,0.00013273,2]
[395191890,1764531033028,-500.0,0.00013273,2]
[395191891,1764531033037,-500.0,0.00013273,2]
[395191892,1764531033047,-500.0,0.00013273,2]
[395191893,1764531033056,-511.28034093,0.00013273,2]
[395191894,1764531033065,-500.0,0.00013273,2]
[395191895,1764531033074,-500.0,0.00013273,2]
[395191896,1764531033082,-447.24201326,0.00013273,2]
[395191932,1764531038299,-181.26985793,0.00013149,2]
[395191934,1764531038310,-500.0,0.00013149,2]
[395191936,1764531038320,-500.0,0.00013149,2]
[395191938,1764531038329,-481.87950125,0.00013149,2]
[395191940,1764531038339,-500.0,0.00013149,2]
[395191942,1764531038348,-500.0,0.00013149,2]
[395191944,1764531038358,-500.0,0.00013149,2]
[395191946,1764531038367,-500.0,0.00013149,2]
[395191948,1764531038377,-500.0,0.00013149,2]
[395191950,1764531038387,-500.0,0.00013149,2]
[395191952,1764531038396,-500.0,0.00013149,2]
[395191954,1764531038406,-500.0,0.00013149,2]
[395191956,1764531038415,-52.75798674,0.00013273,2]
[395191958,1764531038424,-500.0,0.00013273,2]
[395191960,1764531038434,-500.0,0.00013273,2]
[395191962,1764531038443,-500.0,0.00013273,2]
[395191964,1764531038453,-500.0,0.00013273,2]
[395191966,1764531038463,-500.0,0.00013273,2]
[395191968,1764531038472,-500.0,0.00013273,2]
[395191970,1764531038482,-316.31630493,0.00013273,2]
[395191972,1764531038491,-500.0,0.00013273,2]
[395191974,1764531038501,-500.0,0.00013273,2]
[395191976,1764531038511,-500.0,0.00013273,2]
[395191978,1764531038520,-221.57758535,0.00013273,2]
[395191980,1764531038529,-500.0,0.00013273,2]
[395191982,1764531038543,-500.0,0.00013273,2]
[395191984,1764531038552,-500.0,0.00013273,2]
[395191986,1764531038561,-823.0,0.0001351,2]
[395191988,1764531038571,-4595.0,0.00013533,2]
[395191990,1764531038580,-239.84119403,0.00013599,2]
[395191991,1764531038590,-151.0,0.000136,2]
[395191993,1764531038599,-4595.0,0.00013634,2]
[395191995,1764531038610,-300.0,0.00013673,2]
[395191997,1764531038621,-1633.98114183,0.00013683,2]
[395192000,1764531038632,-500.0,0.00013698,2]
[395192001,1764531038641,-500.0,0.00013698,2]
[395192003,1764531038651,-500.0,0.00013698,2]
[395192005,1764531038661,-460.35127994,0.00013698,2]
[395192170,1764531040204,-39.64872006,0.00013698,2]
[395192172,1764531040213,-500.0,0.00013698,2]
[395192174,1764531040223,-500.0,0.00013698,2]
[395192176,1764531040233,-500.94199249,0.00013698,2]
[395192178,1764531040242,-500.0,0.00013698,2]
[395192180,1764531040251,-503.0133305,0.00013698,2]
[395192182,1764531040261,-500.0,0.00013698,2]
[395192184,1764531040270,-169.708667,0.00013698,2]
[395192186,1764531040279,-500.0,0.00013698,2]
[395192188,1764531040288,-500.0,0.00013698,2]
[395192190,1764531040297,-500.0,0.00013698,2]
[395192192,1764531040306,-500.0,0.00013698,2]
[395192194,1764531040315,-500.0,0.00013698,2]
[395192196,1764531040325,-500.0,0.00013698,2]
[395192198,1764531040334,-500.0,0.00013698,2]
[395192200,1764531040345,-500.0,0.00013698,2]
[395192202,1764531040354,-500.0,0.00013698,2]
[395192204,1764531040362,-255.06890364,0.00013698,2]
[395192206,1764531040371,-431.61838631,0.00013698,2]
[395192385,1764531046251,-500.0,0.00013698,2]
[395192386,1764531046264,-100.0,0.00013698,2]
[395192387,1764531046279,-400.0,0.00013698,2]
[395192388,1764531046293,-500.0,0.00013698,2]
[395192389,1764531046306,-500.0,0.00013698,2]
[395192390,1764531046320,-500.0,0.00013698,2]
[395192391,1764531046333,-500.0,0.00013698,2]
[395192392,1764531046347,-196.33073571,0.00013698,2]
[395192393,1764531046360,-500.0,0.00013698,2]
[395192394,1764531046373,-500.0,0.00013698,2]
[395192395,1764531046387,-500.0,0.00013698,2]
[395192396,1764531046400,-219.28362004,0.00013698,2]
[395192397,1764531046413,-500.0,0.00013698,2]
[395192398,1764531046425,-500.0,0.00013698,2]
[395192399,1764531046438,-500.0,0.00013698,2]
[395192400,1764531046452,-500.0,0.00013698,2]
[395192401,1764531046465,-500.0,0.00013698,2]
[395192402,1764531046478,-500.0,0.00013698,2]
[395192403,1764531046491,-500.0,0.00013698,2]
[395192404,1764531046503,-500.0,0.00013698,2]
[395192405,1764531046516,-594.14,0.00013698,2]
[395192406,1764531046529,-500.0,0.00013698,2]
[395192407,1764531046544,-500.0,0.00013698,2]
[395192408,1764531046556,-500.0,0.00013698,2]
[395192409,1764531046573,-500.0,0.00013698,2]
[395192410,1764531046586,-500.0,0.00013698,2]
[395192411,1764531046599,-500.0,0.00013698,2]
[395192412,1764531046612,-500.0,0.00013698,2]
[395192413,1764531046625,-500.0,0.00013698,2]
[395192414,1764531046637,-500.0,0.00013698,2]
[395192415,1764531046651,-500.0,0.00013698,2]
[395192416,1764531046664,-500.0,0.00013698,2]
[395192417,1764531046677,-500.0,0.00013698,2]
[395192418,1764531046689,-500.0,0.00013698,2]
[395192419,1764531046702,-500.0,0.00013698,2]
[395192420,1764531046713,-500.0,0.00013698,2]
[395192421,1764531046726,-500.0,0.00013698,2]
[395192422,1764531046738,-500.0,0.00013698,2]
[395192423,1764531046751,-500.0,0.00013698,2]
[395192424,1764531046764,-500.0,0.00013698,2]
[395192425,1764531046777,-500.0,0.00013698,2]
[395192426,1764531046789,-500.0,0.00013698,2]
[395192427,1764531046802,-500.0,0.00013698,2]
[395192428,1764531046811,-500.0,0.00013698,2]
[395192429,1764531046821,-500.0,0.00013698,2]
[395192430,1764531046830,-500.0,0.00013698,2]
[395192431,1764531046839,-500.0,0.00013698,2]
[395192432,1764531046848,-204.19475468,0.00013698,2]
[395192433,1764531046862,-245.80186665,0.00013698,2]
[395192434,1764531046871,-400.31899137,0.00013698,2]
[395192435,1764531046881,-500.0,0.00013698,2]
[395192436,1764531046890,-500.0,0.00013698,2]
[395192437,1764531046899,-276.77914218,0.00013698,2]
[395192439,1764531506835,1268.8173531,0.0002,30]
[395192440,1764531786422,150.0,0.00015904,30]
[395192450,1764532232218,-668.09015316,7.989e-05,2]
[395192451,1764532232228,-668.09015316,8.07e-05,2]
[395192452,1764532232240,-218.0,8.07e-05,2]
[395192454,1764532232254,-668.09015316,8.152e-05,2]
[395192456,1764532232263,-399.63702358,8.359e-05,2]
[395192458,1764532232272,-489.81,9.013e-05,2]
[395192460,1764532232282,-876.03288481,9.104e-05,2]
[395192462,1764532232291,-220.39305008,9.956e-05,2]
[395192464,1764532232300,-300.0,0.00010255,2]
[395192466,1764532232309,-1496.52531017,0.00010256,2]
[395192470,1764532232340,-48503.47468983,0.00010256,2]
[395192472,1764532232349,-300.0,0.00010256,2]
[395192474,1764532232358,-300.0,0.00010256,2]
[395192476,1764532232367,-300.0,0.00010256,2]
[395192478,1764532232376,-300.0,0.00010256,2]
[395192480,1764532232385,-300.0,0.00010256,2]
[395192482,1764532232394,-300.0,0.00010256,2]
[395192484,1764532232403,-300.0,0.00010256,2]
[395192486,1764532232412,-300.0,0.00010256,2]
[395192488,1764532232422,-300.0,0.00010256,2]
[395192490,1764532232432,-300.0,0.00010256,2]
[395192492,1764532232442,-300.0,0.00010256,2]
[395192513,1764532232617,-300.0,0.00010256,2]
[395192515,1764532232627,-300.0,0.00010256,2]
[395192517,1764532232636,-300.0,0.00010256,2]
[395192519,1764532232646,-300.0,0.00010256,2]
[395192521,1764532232656,-600.0,0.00010256,2]
[395192523,1764532232665,-471.57168782,0.00010359,2]
[395192525,1764532232674,-353.67603643,0.00010566,2]
[395192527,1764532232683,-1358.0,0.00010768,2]
[395192529,1764532232692,-414.0,0.00010768,2]
[395192531,1764532232703,-500.0,0.00010958,2]
[395192533,1764532232712,-388.00000001,0.00010959,2]
[395192535,1764532232722,-420.0,0.00011278,2]
[395192537,1764532232731,-720.0,0.00011282,2]
[395192539,1764532232741,-500.0,0.00012054,2]
[395192542,1764532232750,-543.50635206,0.00012359,2]
[395192544,1764532232759,-587.0,0.00012402,2]
[395192546,1764532232769,-864.0,0.0001241,2]
[395192548,1764532232778,-917.33926004,0.0001305,2]
[395192550,1764532232787,-231.28369723,0.0001305,2]
[395192552,1764532232796,-500.0,0.0001315,2]
[395192553,1764532232805,-452.29293279,0.00013273,2]
[395192555,1764532232815,-414.92008594,0.00013273,2]
[395192557,1764532232824,-160.50453363,0.00013273,2]
[395192559,1764532232833,-500.77535078,0.00013273,2]
[395192561,1764532232842,-500.0,0.00013273,2]
[395192563,1764532232851,-500.0,0.00013273,2]
[395192565,1764532232859,-500.0,0.00013273,2]
[395192567,1764532232868,-500.0,0.00013273,2]
[395192569,1764532232878,-500.0,0.00013273,2]
[395192571,1764532232887,-500.0,0.00013273,2]
[395192573,1764532232897,-500.0,0.00013273,2]
[395192575,1764532232906,-500.0,0.00013273,2]
[395192577,1764532232915,-500.0,0.00013273,2]
[395192579,1764532232924,-500.0,0.00013273,2]
[395192581,1764532232934,-500.20571524,0.00013273,2]
[395192583,1764532232943,-500.0,0.00013273,2]
[395192585,1764532232952,-500.0,0.00013273,2]
[395192587,1764532232961,-37.16456483,0.00013273,2]
[395192590,1764532232972,-462.83543517,0.00013273,2]
[395192592,1764532232982,-500.0,0.00013273,2]
[395192594,1764532232991,-310.81634587,0.00013273,2]
[395192596,1764532233001,-189.18365413,0.00013273,2]
[395192598,1764532233010,-500.0,0.00013273,2]
[395192600,1764532233019,-500.0,0.00013273,2]
[395192602,1764532233028,-500.0,0.00013273,2]
[395192604,1764532233037,-500.0,0.00013273,2]
[395192606,1764532233046,-236.34551595,0.00013355,2]
[395192608,1764532233055,-19.83227856,0.00013372,2]
[395192671,1764532238341,-338.84055212,0.0001314,2]
[395192673,1764532238354,-161.15944788,0.0001314,2]
[395192675,1764532238364,-160.27463795,0.00013273,2]
[395192679,1764532238393,-339.72536205,0.00013273,2]
[395192681,1764532238404,-222.16772144,0.00013372,2]
[395192683,1764532238413,-242.0,0.00013381,2]
[395192685,1764532238423,-242.0,0.00013394,2]
[395192687,1764532238433,-242.0,0.00013471,2]
[395192689,1764532238443,-1633.98114183,0.00013522,2]
[395192691,1764532238452,-220.39305008,0.00013598,2]
[395192693,1764532238461,-239.84119403,0.00013598,2]
[395192696,1764532238472,-242.0,0.00013604,2]
[395192698,1764532238481,-242.0,0.00013616,2]
[395192700,1764532238491,-823.0,0.00013639,2]
[395192702,1764532238501,-242.0,0.00013646,2]
[395192704,1764532238510,-242.0,0.00013647,2]
[395192706,1764532238520,-242.0,0.00013648,2]
[395192728,1764532238531,-1000.0,0.00013651,2]
[395192732,1764532238746,-242.0,0.00013652,2]
[395192734,1764532238756,-242.0,0.00013652,2]
[395192736,1764532238765,-300.0,0.00013673,2]
[395192738,1764532238775,-242.0,0.00013684,2]
[395192740,1764532238784,-333.0,0.00013698,2]
[395192742,1764532238793,-501.85719876,0.00013698,2]
[395192744,1764532238803,-150.94794978,0.00013698,2]
[395192746,1764532238815,-1.05205022,0.00013698,2]
[395192748,1764532238825,-152.0,0.00013698,2]
[395192750,1764532238840,-152.0,0.00013698,2]
[395192752,1764532238849,-500.0,0.00013698,2]
[395192754,1764532238860,-541.22544909,0.00013698,2]
[395192756,1764532238870,-500.0,0.00013698,2]
[395192758,1764532238880,-500.0,0.00013698,2]
[395192760,1764532238891,-500.0,0.00013698,2]
[395192762,1764532238900,-500.0,0.00013698,2]
[395192764,1764532238910,-500.0,0.00013698,2]
[395192766,1764532238921,-15624.01624115,0.00013698,2]
[395192768,1764532238933,-4819.5,0.00013698,2]
[395192771,1764532238944,-4594.20733245,0.00013698,2]
[395192773,1764532238954,-1266.9370056,0.00013698,2]
[395192775,1764532238967,-297.14440855,0.00013698,2]
[395192777,1764532238976,-152.0,0.00013698,2]
[395192779,1764532238986,-333.0,0.00013698,2]
[395192781,1764532238995,-333.0,0.00013698,2]
[395192783,1764532239004,-333.0,0.00013698,2]
[395192785,1764532239013,-333.0,0.00013698,2]
[395192787,1764532239022,-333.0,0.00013698,2]
[395192789,1764532239031,-152.0,0.00013698,2]
[395192791,1764532239041,-333.0,0.00013698,2]
[395192793,1764532239050,-152.0,0.00013698,2]
[395192795,1764532239059,-500.0,0.00013698,2]
[395192797,1764532239068,-152.0,0.00013698,2]
[395192799,1764532239077,-298.24952747,0.00013698,2]
[395192801,1764532239086,-151.0,0.00013698,2]